[Event "Early-Titled-Tuesday-Blitz-March-05-2024"]
[Site "Chess.com"]
[Date "2024.03.05"]
[Round "1"]
[White "ChessFanNM"]
[Black "Kunalm64"]
[Result "0-1"]
[WhiteElo "2269"]
[BlackElo "2596"]
[TimeControl "180+1"]
[EndTime "8:05:22 PST"]
[Termination "Kunalm64 won by resignation"]

1. Nf3 {[%clk 0:02:58.2]} 1... Nf6 {[%clk 0:02:59.6]} 2. c4 {[%clk 0:02:57.7]}
2... e6 {[%clk 0:02:59.4]} 3. b3 {[%clk 0:02:56]} 3... d5 {[%clk 0:02:55.4]} 4.
e3 {[%clk 0:02:55]} 4... Be7 {[%clk 0:02:54.5]} 5. Bb2 {[%clk 0:02:54.7]} 5...
O-O {[%clk 0:02:55]} 6. d4 {[%clk 0:02:46.2]} 6... b6 {[%clk 0:02:51.7]} 7. Bd3
{[%clk 0:02:45.9]} 7... Bb7 {[%clk 0:02:51.8]} 8. O-O {[%clk 0:02:45.9]} 8...
dxc4 {[%clk 0:02:51.2]} 9. bxc4 {[%clk 0:02:45.6]} 9... c5 {[%clk 0:02:40]} 10.
Qe2 {[%clk 0:02:45.3]} 10... Nc6 {[%clk 0:02:33.6]} 11. Nbd2 {[%clk 0:02:18]}
11... cxd4 {[%clk 0:02:29.6]} 12. exd4 {[%clk 0:02:17.8]} 12... Rc8 {[%clk
0:02:29]} 13. Rac1 {[%clk 0:02:17]} 13... Re8 {[%clk 0:02:25.2]} 14. Rfd1 {[%clk
0:02:16.7]} 14... Bd6 {[%clk 0:02:13]} 15. Ne5 {[%clk 0:02:05.9]} 15... Qc7
{[%clk 0:02:10.2]} 16. Ndf3 {[%clk 0:02:05.4]} 16... h6 {[%clk 0:02:05.1]} 17.
h3 {[%clk 0:01:42.8]} 17... Qb8 {[%clk 0:02:00.1]} 18. Bb1 {[%clk 0:01:41.8]}
18... Rcd8 {[%clk 0:01:47.7]} 19. Ng4 {[%clk 0:01:25.8]} 19... Nxg4 {[%clk
0:01:42]} 20. hxg4 {[%clk 0:01:26.7]} 20... Bf4 {[%clk 0:01:40.7]} 21. Qe4
{[%clk 0:01:19.1]} 21... g6 {[%clk 0:01:36.5]} 22. Ne5 {[%clk 0:01:06.1]} 22...
Nxe5 {[%clk 0:01:30.4]} 23. Qxf4 {[%clk 0:00:50.9]} 23... Nf3+ {[%clk
0:01:29.7]} 24. Qxf3 {[%clk 0:00:49.9]} 24... Bxf3 {[%clk 0:01:29.5]} 25. gxf3
{[%clk 0:00:50.2]} 25... Qf4 {[%clk 0:01:26.5]} 26. Be4 {[%clk 0:00:41.7]} 26...
f5 {[%clk 0:01:21.7]} 0-1

[Event "Early-Titled-Tuesday-Blitz-March-05-2024"]
[Site "Chess.com"]
[Date "2024.03.05"]
[Round "1"]
[White "publicaccountcze"]
[Black "WilsonPalencia21"]
[Result "0-1"]
[WhiteElo "2224"]
[BlackElo "2577"]
[TimeControl "180+1"]
[EndTime "8:05:23 PST"]
[Termination "WilsonPalencia21 won by resignation"]

1. e4 {[%clk 0:02:55.3]} 1... c5 {[%clk 0:02:59.9]} 2. Nf3 {[%clk 0:02:53.4]}
2... d6 {[%clk 0:03:00.1]} 3. d4 {[%clk 0:02:53.8]} 3... cxd4 {[%clk 0:03:01]}
4. Qxd4 {[%clk 0:02:53.4]} 4... Nc6 {[%clk 0:03:00.6]} 5. Bb5 {[%clk 0:02:54]}
5... Qa5+ {[%clk 0:03:01.1]} 6. Nc3 {[%clk 0:02:53.1]} 6... Qxb5 {[%clk
0:03:02]} 7. Nxb5 {[%clk 0:02:53]} 7... Nxd4 {[%clk 0:03:02.9]} 8. Nfxd4 {[%clk
0:02:40]} 8... Kd8 {[%clk 0:03:00.4]} 9. Bg5 {[%clk 0:02:24.6]} 9... Nf6 {[%clk
0:02:55.7]} 10. f3 {[%clk 0:02:11.7]} 10... Bd7 {[%clk 0:02:51.6]} 11. Nc3
{[%clk 0:02:10.1]} 11... Rc8 {[%clk 0:02:47]} 12. O-O-O {[%clk 0:02:10]} 12...
h6 {[%clk 0:02:45]} 13. Bh4 {[%clk 0:02:08.6]} 13... g5 {[%clk 0:02:43.5]} 14.
Bf2 {[%clk 0:02:08.1]} 14... a6 {[%clk 0:02:42.2]} 15. Nf5 {[%clk 0:01:32.7]}
15... Kc7 {[%clk 0:02:17.1]} 16. h4 {[%clk 0:01:13.2]} 16... g4 {[%clk
0:02:12.8]} 17. Bd4 {[%clk 0:00:39.1]} 17... e5 {[%clk 0:02:06.4]} 18. Be3
{[%clk 0:00:35.5]} 18... Be6 {[%clk 0:02:02.9]} 19. Na4 {[%clk 0:00:29.7]} 19...
d5 {[%clk 0:01:44.8]} 20. Bb6+ {[%clk 0:00:24.8]} 20... Kb8 {[%clk 0:01:40.7]}
21. Nc5 {[%clk 0:00:21.4]} 21... Bxf5 {[%clk 0:01:29.1]} 22. exf5 {[%clk
0:00:16.3]} 22... Bxc5 {[%clk 0:01:27.2]} 23. Bxc5 {[%clk 0:00:16.7]} 23... Rxc5
{[%clk 0:01:27.3]} 0-1

[Event "Early-Titled-Tuesday-Blitz-March-05-2024"]
[Site "Chess.com"]
[Date "2024.03.05"]
[Round "1"]
[White "sorch29"]
[Black "Yan_Dyomin2010"]
[Result "1-0"]
[WhiteElo "2430"]
[BlackElo "2695"]
[TimeControl "180+1"]
[EndTime "8:05:25 PST"]
[Termination "sorch29 won by resignation"]

1. d4 {[%clk 0:03:00.9]} 1... Nf6 {[%clk 0:02:02.6]} 2. c4 {[%clk 0:03:00.2]}
2... g6 {[%clk 0:02:01.2]} 3. Nc3 {[%clk 0:03:00]} 3... Bg7 {[%clk 0:01:57.1]}
4. e4 {[%clk 0:02:59.4]} 4... d6 {[%clk 0:01:56.6]} 5. Be2 {[%clk 0:02:59.8]}
5... O-O {[%clk 0:01:55.7]} 6. Be3 {[%clk 0:02:59.2]} 6... e5 {[%clk 0:01:50.1]}
7. d5 {[%clk 0:02:58.7]} 7... a5 {[%clk 0:01:49.3]} 8. g4 {[%clk 0:02:55.6]}
8... Na6 {[%clk 0:01:46.6]} 9. g5 {[%clk 0:02:54.3]} 9... Nh5 {[%clk 0:01:42.2]}
10. Bxh5 {[%clk 0:02:52.6]} 10... gxh5 {[%clk 0:01:43.1]} 11. Qxh5 {[%clk
0:02:52.9]} 11... Nc5 {[%clk 0:01:39.7]} 12. O-O-O {[%clk 0:02:51.8]} 12... b6
{[%clk 0:01:37.1]} 13. h4 {[%clk 0:02:47.6]} 13... Ba6 {[%clk 0:01:33.8]} 14.
Qe2 {[%clk 0:02:44.1]} 14... f5 {[%clk 0:01:26.9]} 15. g6 {[%clk 0:02:32.6]}
15... hxg6 {[%clk 0:01:19.1]} 16. Bxc5 {[%clk 0:02:29.4]} 16... bxc5 {[%clk
0:01:17.5]} 17. h5 {[%clk 0:02:30.3]} 17... Qg5+ {[%clk 0:01:16.8]} 18. Kb1
{[%clk 0:02:26.7]} 18... Rab8 {[%clk 0:01:05.2]} 19. Nf3 {[%clk 0:02:22.2]}
19... Qf4 {[%clk 0:00:53.6]} 20. Rh4 {[%clk 0:02:19.6]} 20... Qh6 {[%clk
0:00:49]} 21. hxg6 {[%clk 0:02:17.8]} 21... Qxg6 {[%clk 0:00:47.8]} 22. Rg1
{[%clk 0:02:18.4]} 22... Qf6 {[%clk 0:00:43]} 23. Ng5 {[%clk 0:02:11.9]} 23...
Bc8 {[%clk 0:00:23.2]} 24. Qh5 {[%clk 0:02:10.5]} 24... Rd8 {[%clk 0:00:20.6]}
25. Qh7+ {[%clk 0:02:01.2]} 25... Kf8 {[%clk 0:00:20.4]} 26. Ne6+ {[%clk
0:01:47.9]} 26... Bxe6 {[%clk 0:00:20.8]} 27. dxe6 {[%clk 0:01:48.8]} 27... c6
{[%clk 0:00:21.4]} 28. Rg6 {[%clk 0:01:47.8]} 28... Qe7 {[%clk 0:00:21.8]} 29.
Rh5 {[%clk 0:01:46.4]} 29... Qxe6 {[%clk 0:00:12.6]} 30. Rxe6 {[%clk 0:01:45.2]}
1-0

[Event "Early-Titled-Tuesday-Blitz-March-05-2024"]
[Site "Chess.com"]
[Date "2024.03.05"]
[Round "1"]
[White "jamengrand"]
[Black "Szparu"]
[Result "0-1"]
[WhiteElo "2442"]
[BlackElo "2782"]
[TimeControl "180+1"]
[EndTime "8:05:28 PST"]
[Termination "Szparu won by resignation"]

1. e4 {[%clk 0:03:00]} 1... e6 {[%clk 0:03:00.2]} 2. d4 {[%clk 0:02:59.4]} 2...
d5 {[%clk 0:03:00.9]} 3. e5 {[%clk 0:02:59.9]} 3... c5 {[%clk 0:03:00.4]} 4. c3
{[%clk 0:03:00.1]} 4... Bd7 {[%clk 0:02:59.2]} 5. a3 {[%clk 0:02:59]} 5... Nc6
{[%clk 0:02:56.1]} 6. Nf3 {[%clk 0:02:58.5]} 6... f6 {[%clk 0:02:54.2]} 7. b4
{[%clk 0:02:56]} 7... fxe5 {[%clk 0:02:53.8]} 8. dxe5 {[%clk 0:02:52.4]} 8...
Qc7 {[%clk 0:02:44.9]} 9. Qe2 {[%clk 0:02:41.1]} 9... Nge7 {[%clk 0:02:42.3]}
10. b5 {[%clk 0:02:40.8]} 10... Na5 {[%clk 0:02:41.6]} 11. g3 {[%clk 0:02:34.9]}
11... Nb3 {[%clk 0:02:40.3]} 12. Bb2 {[%clk 0:02:18.4]} 12... Nxa1 {[%clk
0:02:38.5]} 13. Bxa1 {[%clk 0:02:19.3]} 13... Nf5 {[%clk 0:02:35.8]} 14. Bh3
{[%clk 0:02:18.1]} 14... g6 {[%clk 0:02:34.1]} 15. O-O {[%clk 0:02:16.8]} 15...
Be7 {[%clk 0:02:34.1]} 16. c4 {[%clk 0:02:16.6]} 16... d4 {[%clk 0:02:34]} 17.
Nbd2 {[%clk 0:02:16.7]} 17... O-O-O {[%clk 0:02:28]} 18. Bb2 {[%clk 0:02:14.8]}
18... Kb8 {[%clk 0:02:28.3]} 19. a4 {[%clk 0:02:13.7]} 19... Bc8 {[%clk
0:02:28.5]} 20. a5 {[%clk 0:02:12.3]} 20... Qxa5 {[%clk 0:02:26.9]} 21. Ra1
{[%clk 0:02:11.3]} 21... Qc7 {[%clk 0:02:27.1]} 22. b6 {[%clk 0:02:08.6]} 22...
Qxb6 {[%clk 0:02:26.6]} 23. Ba3 {[%clk 0:02:00.8]} 23... Bd7 {[%clk 0:02:26.8]}
24. Ne4 {[%clk 0:01:57.1]} 24... Bc6 {[%clk 0:02:26.3]} 25. Nfd2 {[%clk
0:01:54]} 25... d3 {[%clk 0:02:26.4]} 26. Qd1 {[%clk 0:01:53.8]} 26... Nd4
{[%clk 0:02:26.4]} 27. Nd6 {[%clk 0:01:49.3]} 27... Ne2+ {[%clk 0:02:25.3]} 28.
Kf1 {[%clk 0:01:48.9]} 28... Bxd6 {[%clk 0:02:16.4]} 29. exd6 {[%clk 0:01:48.5]}
29... Rxd6 {[%clk 0:02:17.3]} 30. Rb1 {[%clk 0:01:47.2]} 30... Qa5 {[%clk
0:02:17.5]} 31. Ra1 {[%clk 0:01:35.8]} 31... Qb6 {[%clk 0:02:04.5]} 32. Rb1
{[%clk 0:01:15.9]} 32... Nc3 {[%clk 0:02:04.4]} 33. Rxb6 {[%clk 0:01:00.6]}
33... Nxd1 {[%clk 0:02:04.6]} 34. Rb3 {[%clk 0:00:59.3]} 34... Ba4 {[%clk
0:01:55.6]} 35. Bxc5 {[%clk 0:00:54.5]} 35... Rc6 {[%clk 0:01:53.7]} 36. Ra3
{[%clk 0:00:51.3]} 36... Rxc5 {[%clk 0:01:51]} 37. Rxa4 {[%clk 0:00:51.6]} 37...
Rf8 {[%clk 0:01:47.2]} 38. f4 {[%clk 0:00:50.4]} 38... e5 {[%clk 0:01:45.4]} 39.
Ne4 {[%clk 0:00:49]} 39... Rxc4 {[%clk 0:01:45.4]} 0-1

[Event "Early-Titled-Tuesday-Blitz-March-05-2024"]
[Site "Chess.com"]
[Date "2024.03.05"]
[Round "1"]
[White "Practical-Play"]
[Black "PattyCastillo"]
[Result "1-0"]
[WhiteElo "2535"]
[BlackElo "2015"]
[TimeControl "180+1"]
[EndTime "8:05:30 PST"]
[Termination "Practical-Play won by checkmate"]

1. d4 {[%clk 0:02:59.1]} 1... d5 {[%clk 0:02:59.6]} 2. c4 {[%clk 0:02:50.6]}
2... c6 {[%clk 0:02:57.5]} 3. e4 {[%clk 0:02:35.9]} 3... dxe4 {[%clk 0:02:54.3]}
4. Nc3 {[%clk 0:02:35.4]} 4... Nf6 {[%clk 0:02:54.1]} 5. f3 {[%clk 0:02:35.2]}
5... exf3 {[%clk 0:02:53.6]} 6. Nxf3 {[%clk 0:02:36.1]} 6... e6 {[%clk 0:02:50]}
7. Bd3 {[%clk 0:02:35.5]} 7... Be7 {[%clk 0:02:49.8]} 8. O-O {[%clk 0:02:35.2]}
8... O-O {[%clk 0:02:50]} 9. Qe1 {[%clk 0:02:31.4]} 9... Nbd7 {[%clk 0:02:47.6]}
10. Qh4 {[%clk 0:02:22.5]} 10... g6 {[%clk 0:02:20.5]} 11. Bh6 {[%clk
0:02:14.6]} 11... Re8 {[%clk 0:02:20.2]} 12. Ng5 {[%clk 0:02:01.2]} 12... Nf8
{[%clk 0:02:08.3]} 13. Bxf8 {[%clk 0:01:14.4]} 13... Kxf8 {[%clk 0:01:38.9]} 14.
Qh6+ {[%clk 0:01:04]} 14... Kg8 {[%clk 0:01:28.2]} 15. Nce4 {[%clk 0:01:03.5]}
15... Qxd4+ {[%clk 0:01:13.9]} 16. Kh1 {[%clk 0:01:02.6]} 16... Bf8 {[%clk
0:00:19.1]} 17. Nxf6+ {[%clk 0:01:01.3]} 17... Qxf6 {[%clk 0:00:17.9]} 18. Qxh7#
{[%clk 0:01:02.2]} 1-0

[Event "Early-Titled-Tuesday-Blitz-March-05-2024"]
[Site "Chess.com"]
[Date "2024.03.05"]
[Round "1"]
[White "chess123456s"]
[Black "Penafiel-Josselyne02"]
[Result "1-0"]
[WhiteElo "2539"]
[BlackElo "2065"]
[TimeControl "180+1"]
[EndTime "8:05:32 PST"]
[Termination "chess123456s won on time"]

1. e4 {[%clk 0:03:00.9]} 1... c5 {[%clk 0:02:59.9]} 2. Nf3 {[%clk 0:02:59.8]}
2... d6 {[%clk 0:02:59.9]} 3. Nc3 {[%clk 0:02:55.4]} 3... Nf6 {[%clk 0:02:59.1]}
4. d4 {[%clk 0:02:55.4]} 4... cxd4 {[%clk 0:02:58.9]} 5. Nxd4 {[%clk 0:02:56.3]}
5... Nc6 {[%clk 0:02:59.1]} 6. Bg5 {[%clk 0:02:54.9]} 6... Bd7 {[%clk 0:02:59]}
7. Qd2 {[%clk 0:02:55.1]} 7... Nxd4 {[%clk 0:02:58.3]} 8. Qxd4 {[%clk
0:02:54.9]} 8... Qa5 {[%clk 0:02:59]} 9. h4 {[%clk 0:02:54.5]} 9... Rc8 {[%clk
0:02:55]} 10. Be2 {[%clk 0:02:44.8]} 10... h6 {[%clk 0:02:15.4]} 11. Bd2 {[%clk
0:02:41.3]} 11... e5 {[%clk 0:02:10.4]} 12. Qd3 {[%clk 0:02:40.3]} 12... Qc7
{[%clk 0:02:04]} 13. a3 {[%clk 0:02:21.6]} 13... a6 {[%clk 0:01:59.8]} 14. f3
{[%clk 0:02:21.2]} 14... b5 {[%clk 0:01:56.7]} 15. g4 {[%clk 0:02:20.8]} 15...
Be7 {[%clk 0:01:50.9]} 16. O-O-O {[%clk 0:02:19.2]} 16... Be6 {[%clk 0:01:46.1]}
17. g5 {[%clk 0:02:15.4]} 17... Nh5 {[%clk 0:01:34.6]} 18. gxh6 {[%clk
0:02:13.7]} 18... gxh6 {[%clk 0:01:32.5]} 19. Rdg1 {[%clk 0:02:09.2]} 19... Qc4
{[%clk 0:00:41.2]} 20. Qe3 {[%clk 0:02:03.9]} 20... Qc5 {[%clk 0:00:33.9]} 21.
Kb1 {[%clk 0:01:57.6]} 21... Qxe3 {[%clk 0:00:23.9]} 22. Bxe3 {[%clk 0:01:58.5]}
22... Bf6 {[%clk 0:00:18.1]} 23. a4 {[%clk 0:01:56.1]} 23... b4 {[%clk
0:00:08.8]} 24. Nd5 {[%clk 0:01:53.1]} 24... Bxd5 {[%clk 0:00:08.6]} 25. exd5
{[%clk 0:01:54]} 25... a5 {[%clk 0:00:08.6]} 26. Bb5+ {[%clk 0:01:54.1]} 26...
Ke7 {[%clk 0:00:08.6]} 27. Bb6 {[%clk 0:01:54]} 27... Nf4 {[%clk 0:00:01.5]} 28.
Rd1 {[%clk 0:01:46.6]} 1-0

[Event "Early-Titled-Tuesday-Blitz-March-05-2024"]
[Site "Chess.com"]
[Date "2024.03.05"]
[Round "1"]
[White "TigrVShlyape"]
[Black "AttilaTurzo"]
[Result "1-0"]
[WhiteElo "2876"]
[BlackElo "2476"]
[TimeControl "180+1"]
[EndTime "8:05:36 PST"]
[Termination "TigrVShlyape won by resignation"]

1. e4 {[%clk 0:03:00.9]} 1... c5 {[%clk 0:02:59.4]} 2. Nf3 {[%clk 0:03:00.9]}
2... d6 {[%clk 0:02:59.1]} 3. d4 {[%clk 0:03:01.2]} 3... cxd4 {[%clk 0:02:59.9]}
4. Nxd4 {[%clk 0:03:01.8]} 4... Nf6 {[%clk 0:03:00.5]} 5. Nc3 {[%clk 0:03:02.5]}
5... a6 {[%clk 0:03:00.6]} 6. a4 {[%clk 0:03:02.9]} 6... e5 {[%clk 0:02:58.9]}
7. Nf3 {[%clk 0:03:03.1]} 7... h6 {[%clk 0:02:59.2]} 8. Bc4 {[%clk 0:03:02.9]}
8... Be7 {[%clk 0:02:59.1]} 9. O-O {[%clk 0:03:02.9]} 9... O-O {[%clk
0:02:58.2]} 10. Qe2 {[%clk 0:03:03]} 10... Be6 {[%clk 0:02:57.5]} 11. Bb3 {[%clk
0:02:55.5]} 11... Nc6 {[%clk 0:02:49.2]} 12. Rd1 {[%clk 0:02:55.3]} 12... Qc7
{[%clk 0:02:37.3]} 13. Be3 {[%clk 0:02:54.5]} 13... Na5 {[%clk 0:02:29.3]} 14.
Nd5 {[%clk 0:02:30.7]} 14... Nxd5 {[%clk 0:02:14.2]} 15. Bxd5 {[%clk 0:02:31.6]}
15... Nc4 {[%clk 0:02:10.9]} 16. c3 {[%clk 0:02:07.9]} 16... Rac8 {[%clk
0:01:26.7]} 17. h3 {[%clk 0:02:05.1]} 17... Rfd8 {[%clk 0:01:19]} 18. Rd3 {[%clk
0:01:56.2]} 18... b5 {[%clk 0:01:06.7]} 19. axb5 {[%clk 0:01:54.6]} 19... axb5
{[%clk 0:01:07.6]} 20. Ra7 {[%clk 0:01:54.5]} 20... Nxe3 {[%clk 0:00:26.9]} 21.
Rxc7 {[%clk 0:01:47]} 21... Rxc7 {[%clk 0:00:26.7]} 22. Qxe3 {[%clk 0:01:46.5]}
22... Rb8 {[%clk 0:00:24.5]} 23. Rd1 {[%clk 0:01:39.7]} 23... Bf8 {[%clk
0:00:22.2]} 24. Bxe6 {[%clk 0:01:38.7]} 24... fxe6 {[%clk 0:00:21.9]} 25. Ra1
{[%clk 0:01:39.1]} 25... b4 {[%clk 0:00:20.4]} 26. Ra7 {[%clk 0:01:37.1]} 26...
bxc3 {[%clk 0:00:17.9]} 27. bxc3 {[%clk 0:01:36.1]} 27... Rxa7 {[%clk
0:00:15.9]} 28. Qxa7 {[%clk 0:01:35.5]} 28... Rc8 {[%clk 0:00:15.7]} 29. Qd7
{[%clk 0:01:35.5]} 29... Rxc3 {[%clk 0:00:15.5]} 30. Qxe6+ {[%clk 0:01:35.7]}
30... Kh7 {[%clk 0:00:16]} 31. Nh4 {[%clk 0:01:35.9]} 31... Rc7 {[%clk 0:00:15]}
32. Ng6 {[%clk 0:01:35.7]} 1-0

[Event "Early-Titled-Tuesday-Blitz-March-05-2024"]
[Site "Chess.com"]
[Date "2024.03.05"]
[Round "1"]
[White "Sina_Movahed"]
[Black "elmusmolamas"]
[Result "1-0"]
[WhiteElo "3034"]
[BlackElo "2515"]
[TimeControl "180+1"]
[EndTime "8:05:40 PST"]
[Termination "Sina_Movahed won by resignation"]

1. Nf3 {[%clk 0:03:00.9]} 1... d5 {[%clk 0:02:58.5]} 2. c4 {[%clk 0:03:01.8]}
2... d4 {[%clk 0:02:54.4]} 3. b4 {[%clk 0:03:01.7]} 3... f6 {[%clk 0:02:53.8]}
4. e3 {[%clk 0:03:00.6]} 4... e5 {[%clk 0:02:40.2]} 5. c5 {[%clk 0:03:00.6]}
5... dxe3 {[%clk 0:02:31]} 6. fxe3 {[%clk 0:02:59.3]} 6... Be6 {[%clk
0:02:27.1]} 7. Nc3 {[%clk 0:02:51.8]} 7... a5 {[%clk 0:02:26.2]} 8. d4 {[%clk
0:02:22]} 8... axb4 {[%clk 0:02:22.4]} 9. Ne4 {[%clk 0:02:22.6]} 9... Bd5 {[%clk
0:02:03.3]} 10. Ng3 {[%clk 0:02:02.6]} 10... Nc6 {[%clk 0:01:48.5]} 11. e4
{[%clk 0:01:54.3]} 11... Bxa2 {[%clk 0:01:45.7]} 12. d5 {[%clk 0:01:50.1]} 12...
Bxc5 {[%clk 0:01:18.8]} 13. Bb5 {[%clk 0:01:33.2]} 13... Kf8 {[%clk 0:01:14]}
14. Qe2 {[%clk 0:01:27.9]} 14... Bxd5 {[%clk 0:00:25.3]} 15. Rxa8 {[%clk
0:01:25]} 15... Qxa8 {[%clk 0:00:26.2]} 16. exd5 {[%clk 0:01:25.4]} 16... Nd4
{[%clk 0:00:27.1]} 17. Nxd4 {[%clk 0:01:17.7]} 17... Bxd4 {[%clk 0:00:28]} 18.
Nf5 {[%clk 0:01:16.4]} 18... Bc3+ {[%clk 0:00:18.4]} 19. Kf2 {[%clk 0:01:16.4]}
19... g6 {[%clk 0:00:18.4]} 20. Nh6 {[%clk 0:01:09.4]} 20... Bd4+ {[%clk
0:00:18.4]} 21. Kg3 {[%clk 0:01:05]} 21... Qa3+ {[%clk 0:00:18.6]} 22. Bxa3
{[%clk 0:01:04.6]} 1-0

[Event "Early-Titled-Tuesday-Blitz-March-05-2024"]
[Site "Chess.com"]
[Date "2024.03.05"]
[Round "1"]
[White "Msb2"]
[Black "losersgame"]
[Result "1-0"]
[WhiteElo "3036"]
[BlackElo "2516"]
[TimeControl "180+1"]
[EndTime "8:05:48 PST"]
[Termination "Msb2 won on time"]

1. d4 {[%clk 0:03:00.9]} 1... Nf6 {[%clk 0:02:59.7]} 2. c4 {[%clk 0:03:01.4]}
2... Nc6 {[%clk 0:02:59.2]} 3. Nf3 {[%clk 0:03:01.5]} 3... e6 {[%clk 0:02:59.5]}
4. Nc3 {[%clk 0:03:01.6]} 4... Bb4 {[%clk 0:02:59.6]} 5. Bd2 {[%clk 0:03:02.2]}
5... d6 {[%clk 0:02:54.4]} 6. Qc2 {[%clk 0:03:00.9]} 6... O-O {[%clk 0:02:50]}
7. a3 {[%clk 0:03:00.9]} 7... Bxc3 {[%clk 0:02:50]} 8. Bxc3 {[%clk 0:03:01.8]}
8... Re8 {[%clk 0:02:50]} 9. Rd1 {[%clk 0:02:57.4]} 9... Qe7 {[%clk 0:02:49.8]}
10. d5 {[%clk 0:02:51.4]} 10... Nb8 {[%clk 0:02:45.4]} 11. e3 {[%clk 0:02:51.3]}
11... e5 {[%clk 0:02:43.7]} 12. Be2 {[%clk 0:02:51.3]} 12... Bg4 {[%clk
0:02:32.9]} 13. O-O {[%clk 0:02:50.1]} 13... c6 {[%clk 0:02:32.5]} 14. h3 {[%clk
0:02:49]} 14... Bh5 {[%clk 0:02:32.3]} 15. dxc6 {[%clk 0:02:31.1]} 15... Nxc6
{[%clk 0:02:25.9]} 16. b4 {[%clk 0:02:30.1]} 16... Rac8 {[%clk 0:02:20.9]} 17.
b5 {[%clk 0:02:24.9]} 17... Nb8 {[%clk 0:02:19.3]} 18. Bb4 {[%clk 0:02:25.4]}
18... Red8 {[%clk 0:01:53.4]} 19. Nh4 {[%clk 0:02:19.8]} 19... Bg6 {[%clk
0:01:43.9]} 20. Nxg6 {[%clk 0:02:18.3]} 20... hxg6 {[%clk 0:01:43.8]} 21. Bf3
{[%clk 0:02:16.5]} 21... b6 {[%clk 0:01:31.6]} 22. Qb3 {[%clk 0:02:06.5]} 22...
Ne8 {[%clk 0:01:26.4]} 23. Rd2 {[%clk 0:02:06]} 23... Nd7 {[%clk 0:01:26.3]} 24.
Bg4 {[%clk 0:02:03.1]} 24... Rc7 {[%clk 0:01:18.1]} 25. Bxd7 {[%clk 0:02:02]}
25... Rdxd7 {[%clk 0:01:08.2]} 26. Rfd1 {[%clk 0:02:02]} 26... Qe6 {[%clk
0:01:08.3]} 27. Rd5 {[%clk 0:02:00.7]} 27... Rc8 {[%clk 0:00:41.7]} 28. a4
{[%clk 0:01:54.2]} 28... f6 {[%clk 0:00:33.9]} 29. Qd3 {[%clk 0:01:52.6]} 29...
Rdc7 {[%clk 0:00:28.6]} 30. Rc1 {[%clk 0:01:38.1]} 30... g5 {[%clk 0:00:15.7]}
31. a5 {[%clk 0:01:38]} 31... bxa5 {[%clk 0:00:06.5]} 32. Bxa5 {[%clk
0:01:38.9]} 32... Rd7 {[%clk 0:00:06.7]} 33. Bb4 {[%clk 0:01:39.5]} 33... Kf7
{[%clk 0:00:03.2]} 34. c5 {[%clk 0:01:38.2]} 1-0

[Event "Early-Titled-Tuesday-Blitz-March-05-2024"]
[Site "Chess.com"]
[Date "2024.03.05"]
[Round "1"]
[White "jaskol95"]
[Black "cristiano78"]
[Result "1-0"]
[WhiteElo "2581"]
[BlackElo "2243"]
[TimeControl "180+1"]
[EndTime "8:05:48 PST"]
[Termination "jaskol95 won by resignation"]

1. e4 {[%clk 0:02:56.5]} 1... c5 {[%clk 0:02:59.5]} 2. Nf3 {[%clk 0:02:56.2]}
2... d6 {[%clk 0:02:59.7]} 3. Bb5+ {[%clk 0:02:56.6]} 3... Bd7 {[%clk 0:02:59]}
4. c4 {[%clk 0:02:57]} 4... a6 {[%clk 0:02:57.3]} 5. Bxd7+ {[%clk 0:02:56.6]}
5... Qxd7 {[%clk 0:02:55.5]} 6. Nc3 {[%clk 0:02:56.8]} 6... Nc6 {[%clk
0:02:52.3]} 7. d3 {[%clk 0:02:57]} 7... g6 {[%clk 0:02:50.7]} 8. O-O {[%clk
0:02:49.6]} 8... Bg7 {[%clk 0:02:50.6]} 9. Re1 {[%clk 0:02:49.8]} 9... Nf6
{[%clk 0:02:45.2]} 10. Nd5 {[%clk 0:02:42.3]} 10... Nxd5 {[%clk 0:02:35.7]} 11.
exd5 {[%clk 0:02:42.4]} 11... Ne5 {[%clk 0:02:32.6]} 12. Bf4 {[%clk 0:02:30.8]}
12... Nxf3+ {[%clk 0:02:32.4]} 13. Qxf3 {[%clk 0:02:31.3]} 13... O-O {[%clk
0:02:31.4]} 14. Rab1 {[%clk 0:02:30.7]} 14... b5 {[%clk 0:02:30.7]} 15. Bg5
{[%clk 0:02:16.8]} 15... e5 {[%clk 0:02:23.3]} 16. dxe6 {[%clk 0:02:05.2]} 16...
fxe6 {[%clk 0:02:22.5]} 17. Qg4 {[%clk 0:02:04.4]} 17... Rae8 {[%clk 0:02:19.4]}
18. Re2 {[%clk 0:02:01.9]} 18... Bd4 {[%clk 0:02:16.8]} 19. Rbe1 {[%clk
0:01:59.1]} 19... Qf7 {[%clk 0:02:13.4]} 20. Qg3 {[%clk 0:01:45.1]} 20... d5
{[%clk 0:02:00.9]} 21. Bh6 {[%clk 0:01:34]} 21... Bg7 {[%clk 0:01:51.8]} 22.
Bxg7 {[%clk 0:01:34]} 22... Kxg7 {[%clk 0:01:51.8]} 23. Qe5+ {[%clk 0:01:20.3]}
23... Qf6 {[%clk 0:01:38.6]} 24. cxd5 {[%clk 0:01:14.7]} 24... Qxe5 {[%clk
0:01:35.8]} 25. Rxe5 {[%clk 0:01:13.2]} 25... Rf4 {[%clk 0:01:26.6]} 26. dxe6
{[%clk 0:01:08]} 26... Rd4 {[%clk 0:01:24.1]} 27. Rxc5 {[%clk 0:00:51.6]} 27...
Rxd3 {[%clk 0:01:23.7]} 28. Rc7+ {[%clk 0:00:49.8]} 28... Kf6 {[%clk 0:01:23.5]}
29. Rf7+ {[%clk 0:00:48.1]} 29... Kg5 {[%clk 0:01:22.1]} 30. e7 {[%clk
0:00:43.9]} 30... h6 {[%clk 0:01:14.1]} 31. Rf8 {[%clk 0:00:37.2]} 31... Rxe7
{[%clk 0:01:11.4]} 32. h4+ {[%clk 0:00:37.7]} 1-0